fUST/lending_fUST_20250220
["ID","MTS","AMOUNT","RATE_DAILY","PERIOD"]
[353699691,1739993446328,-500.0,0.00013945,2]
[353699693,1739993446338,-500.0,0.00013945,2]
[353699695,1739993446348,-500.0,0.00013945,2]
[353699697,1739993446357,-500.0,0.00013945,2]
[353699699,1739993446367,-500.0,0.00013945,2]
[353699701,1739993446376,-1113.6,0.00013945,2]
[353699703,1739993446385,-500.0,0.00013945,2]
[353699705,1739993446397,-500.0,0.00013945,2]
[353699707,1739993446407,-500.0,0.00013945,2]
[353699709,1739993446418,-500.0,0.00013945,2]
[353699711,1739993446429,-500.0,0.00013945,2]
[353699713,1739993446441,-1442.621722,0.00013945,2]
[353699715,1739993446455,-1442.621722,0.00013945,2]
[353699717,1739993446465,-500.0,0.00013945,2]
[353699719,1739993446475,-500.0,0.00013945,2]
[353699721,1739993446484,-500.0,0.00013945,2]
[353699723,1739993446494,-500.0,0.00013945,2]
[353699725,1739993446504,-500.0,0.00013945,2]
[353699727,1739993446514,-500.0,0.00013945,2]
[353699729,1739993446523,-500.0,0.00013945,2]
[353699731,1739993446532,-732.67,0.00013945,2]
[353699733,1739993446542,-764.39,0.00013945,2]
[353699735,1739993446551,-500.0,0.00013945,2]
[353699737,1739993446560,-1945.72,0.00013945,2]
[353699739,1739993446570,-500.0,0.00013945,2]
[353699741,1739993446580,-151.0,0.00013945,2]
[353699743,1739993446589,-500.0,0.00013945,2]
[353699745,1739993446599,-500.0,0.00013945,2]
[353699747,1739993446608,-1096.96,0.00013945,2]
[353699749,1739993446618,-500.0,0.00013945,2]
[353699751,1739993446627,-939.03,0.00013945,2]
[353699753,1739993446637,-500.0,0.00013945,2]
[353699755,1739993446647,-500.0,0.00013945,2]
[353699757,1739993446657,-2183.99,0.00013945,2]
[353699759,1739993446667,-500.0,0.00013945,2]
[353699761,1739993446677,-500.0,0.00013945,2]
[353699763,1739993446687,-500.0,0.00013945,2]
[353699765,1739993446697,-213.10427045,0.00013945,2]
[353699767,1739993446708,-5846.13,0.00013945,2]
[353699769,1739993446718,-500.0,0.00013945,2]
[353699771,1739993446728,-500.0,0.00013945,2]
[353699773,1739993446737,-2082.11,0.00013945,2]
[353699775,1739993446746,-8474.38,0.00013945,2]
[353699777,1739993446756,-1201.82,0.00013945,2]
[353699779,1739993446766,-565.8,0.00013945,2]
[353699781,1739993446777,-500.0,0.00013945,2]
[353699783,1739993446787,-1256.69,0.00013945,2]
[353699785,1739993446797,-314.47,0.00013945,2]
[353699788,1739993446807,-500.0,0.00013945,2]
[353699790,1739993446818,-520.45,0.00013945,2]
[353699792,1739993446827,-1193.06,0.00013945,2]
[353699793,1739993446836,-764.21,0.00013945,2]
[353699795,1739993446846,-561.4,0.00013945,2]
[353699797,1739993446855,-1647.02,0.00013945,2]
[353699799,1739993446865,-2276.69,0.00013945,2]
[353699801,1739993446875,-500.0,0.00013945,2]
[353699803,1739993446885,-3082.34,0.00013945,2]
[353699806,1739993446895,-619.22,0.00013945,2]
[353699807,1739993446906,-500.0,0.00013945,2]
[353699809,1739993446915,-500.0,0.00013945,2]
[353699812,1739993446925,-500.0,0.00013945,2]
[353699814,1739993446935,-500.0,0.00013945,2]
[353699816,1739993446944,-23157.7,0.00013945,2]
[353699817,1739993446954,-500.0,0.00013945,2]
[353699820,1739993446964,-500.0,0.00013945,2]
[353699821,1739993446973,-500.0,0.00013945,2]
[353699823,1739993446983,-500.0,0.00013945,2]
[353699826,1739993446992,-910.45,0.00013945,2]
[353699828,1739993447002,-500.0,0.00013945,2]
[353699830,1739993447012,-500.0,0.00013945,2]
[353699832,1739993447022,-500.0,0.00013945,2]
[353699834,1739993447032,-500.0,0.00013973,2]
[353699836,1739993447042,-500.0,0.00013973,2]
[353699838,1739993447051,-500.0,0.00013973,2]
[353699840,1739993447061,-500.0,0.00013973,2]
[353699842,1739993447070,-572.78652871,0.00013973,2]
[353699844,1739993447079,-218.184773,0.00013987,2]
[353699846,1739993447090,-218.184773,0.00013987,2]
[353699848,1739993447099,-576.863411,0.00013987,2]
[353699850,1739993447109,-576.863411,0.00013987,2]
[353699852,1739993447118,-1062.816669,0.00013987,2]
[353699854,1739993447129,-1062.816669,0.00013987,2]
[353699864,1739993447207,-37477.72191968,0.00013987,2]
[353699866,1739993447218,-37477.72191968,0.0001399,2]
[353699868,1739993447227,-151.0,0.0001399,2]
[353699870,1739993447240,-151.0,0.0001399,2]
[353699872,1739993447249,-151.0,0.0001399,2]
[353699874,1739993447258,-450.0,0.0001399,2]
[353699876,1739993447267,-450.0,0.0001399,2]
[353699878,1739993447278,-406.47818565,0.0001399,2]
[353699880,1739993447289,-4096.74829003,0.0001399,2]
[353699882,1739993447298,-229.907001,0.0001399,2]
[353699884,1739993447308,-229.907001,0.0001399,2]
[353699886,1739993447318,-483.051078,0.0001399,2]
[353699888,1739993447327,-151.0,0.0001399,2]
[353699890,1739993447337,-483.051078,0.0001399,2]
[353699892,1739993447347,-1623.222034,0.0001399,2]
[353699894,1739993447357,-1623.222034,0.0001399,2]
[353699896,1739993447366,-151.0,0.0001399,2]
[353699898,1739993447376,-151.0,0.0001399,2]
[353699900,1739993447386,-9025.878337,0.0001399,2]
[353699902,1739993447396,-9025.878337,0.0001399,2]
[353699904,1739993447408,-74955.44383936,0.00013991,2]
[353699906,1739993447417,-151.0,0.00013991,2]
[353699908,1739993447427,-151.0,0.00013992,2]
[353699910,1739993447436,-1339.774645,0.00013992,2]
[353699912,1739993447447,-1339.774645,0.00013992,2]
[353699914,1739993447456,-4752.4458,0.00013992,2]
[353699916,1739993447466,-4752.4458,0.00013992,2]
[353699917,1739993447476,-151.0,0.00013992,2]
[353699918,1739993447486,-672.359079,0.00013992,2]
[353699919,1739993447495,-672.359079,0.00013992,2]
[353699920,1739993447507,-691.309199,0.00013992,2]
[353699921,1739993447516,-691.309199,0.00013992,2]
[353699922,1739993447526,-1442.621722,0.00013992,2]
[353699923,1739993447536,-1442.621722,0.00013992,2]
[353699924,1739993447545,-151.0,0.00013992,2]
[353699925,1739993447555,-37477.72191968,0.00013992,2]
[353699926,1739993447564,-74955.44383936,0.00013997,2]
[353699927,1739993447574,-74955.44383936,0.00013997,2]
[353699928,1739993447584,-151.0,0.00013997,2]
[353699929,1739993447594,-789.616638,0.00013997,2]
[353699930,1739993447604,-789.616638,0.00013997,2]
[353699931,1739993447613,-364.184848,0.00013997,2]
[353699932,1739993447622,-364.184848,0.00013997,2]
[353699933,1739993447631,-151.0,0.00013997,2]
[353699934,1739993447642,-151.0,0.00013997,2]
[353699935,1739993447658,-151.0,0.00013997,2]
[353699936,1739993447668,-450.0,0.00013997,2]
[353699937,1739993447678,-218.184773,0.00013997,2]
[353699938,1739993447688,-450.0,0.00013997,2]
[353699939,1739993447697,-218.184773,0.00013997,2]
[353699940,1739993447707,-1049.066856,0.00013997,2]
[353699941,1739993447717,-1049.066856,0.00013997,2]
[353699942,1739993447726,-576.863411,0.00013997,2]
[353699943,1739993447735,-576.863411,0.00013997,2]
[353699944,1739993447745,-1062.816669,0.00013997,2]
[353699945,1739993447755,-1062.816669,0.00013997,2]
[353699946,1739993447765,-229.907001,0.00013997,2]
[353699947,1739993447775,-229.907001,0.00013997,2]
[353699948,1739993447789,-483.051078,0.00013997,2]
[353699949,1739993447798,-151.0,0.00013997,2]
[353699950,1739993447808,-483.051078,0.00013997,2]
[353699951,1739993447818,-1623.222034,0.00013997,2]
[353699952,1739993447827,-1623.222034,0.00013997,2]
[353699953,1739993447836,-151.0,0.00013997,2]
[353699954,1739993447846,-151.0,0.00013997,2]
[353699955,1739993447855,-9025.878337,0.00013997,2]
[353699956,1739993447864,-9025.878337,0.00013997,2]
[353699957,1739993447874,-151.0,0.00014,2]
[353699959,1739993447883,-1316.83465032,0.00014,2]
[353699961,1739993447892,-151.0,0.00014,2]
[353699962,1739993447903,-500.0,0.00014027,2]
[353699964,1739993447912,-500.0,0.00014027,2]
[353699966,1739993447921,-500.0,0.00014027,2]
[353699968,1739993447930,-500.0,0.00014027,2]
[353699970,1739993447940,-500.0,0.00014027,2]
[353699971,1739993447949,-500.0,0.00014027,2]
[353699972,1739993447959,-500.0,0.00014027,2]
[353699974,1739993447968,-500.0,0.00014027,2]
[353699976,1739993447977,-500.0,0.00014027,2]
[353699978,1739993447986,-500.0,0.00014027,2]
[353699980,1739993447996,-500.0,0.00014027,2]
[353699982,1739993448005,-500.0,0.00014027,2]
[353699984,1739993448015,-512.6,0.00014027,2]
[353699986,1739993448024,-376.18717615,0.00014027,2]
[353699987,1739993448033,-500.0,0.00014027,2]
[353699989,1739993448042,-500.0,0.00014027,2]
[353699991,1739993448051,-274.5257298,0.00014027,2]
[353699993,1739993448061,-500.0,0.00014027,2]
[353699996,1739993448071,-508.73,0.00014027,2]
[353699998,1739993448080,-519.39744979,0.00014027,2]
[353700000,1739993448091,-500.0,0.00014027,2]
[353700002,1739993448100,-500.0,0.00014027,2]
[353700003,1739993448110,-500.0,0.00014027,2]
[353700005,1739993448120,-500.0,0.00014027,2]
[353700007,1739993448129,-500.0,0.00014027,2]
[353700009,1739993448138,-500.0,0.00014027,2]
[353700011,1739993448149,-505.13121033,0.00014027,2]
[353700013,1739993448159,-500.0,0.00014027,2]
[353700016,1739993448169,-500.0,0.00014027,2]
[353700017,1739993448179,-500.0,0.00014027,2]
[353700019,1739993448188,-500.0,0.00014027,2]
[353700022,1739993448198,-500.0,0.00014027,2]
[353700023,1739993448208,-578.16,0.00014027,2]
[353700025,1739993448217,-500.0,0.00014027,2]
[353700027,1739993448227,-500.0,0.00014027,2]
[353700030,1739993448240,-691.97,0.00014027,2]
[353700031,1739993448249,-500.0,0.00014027,2]
[353700033,1739993448259,-500.0,0.00014027,2]
[353700035,1739993448269,-1104.41,0.00014027,2]
[353700037,1739993448279,-156.314289,0.00014027,2]
[353700039,1739993448288,-3005.91,0.00014027,2]
[353700041,1739993448298,-1060.38,0.00014027,2]
[353700043,1739993448307,-500.0,0.00014027,2]
[353700045,1739993448319,-8839.34,0.00014027,2]
[353700047,1739993448329,-500.0,0.00014027,2]
[353700049,1739993448339,-500.0,0.00014027,2]
[353700050,1739993448349,-502.22896325,0.00014027,2]
[353700052,1739993448359,-500.0,0.00014027,2]
[353700053,1739993448370,-500.0,0.00014027,2]
[353700056,1739993448444,-1056.78,0.00014027,2]
[353700057,1739993448455,-722.94,0.00014027,2]
[353700058,1739993448465,-378.46301092,0.00014027,2]
[353700059,1739993448474,-530.25710241,0.00014027,2]
[353700060,1739993448485,-500.0,0.00014027,2]
[353700061,1739993448495,-1113.6,0.00014027,2]
[353700062,1739993448504,-595.42436319,0.00014027,2]
[353700063,1739993448514,-500.0,0.00014027,2]
[353700064,1739993448524,-500.0,0.00014027,2]
[353700065,1739993448533,-221.14768895,0.00014027,2]
[353700066,1739993448543,-500.0,0.00014027,2]
[353700067,1739993448552,-1442.621722,0.00014027,2]
[353700068,1739993448562,-1442.621722,0.00014027,2]
[353700069,1739993448572,-151.0,0.00014027,2]
[353700070,1739993448582,-500.0,0.00014027,2]
[353700071,1739993448592,-500.0,0.00014027,2]
[353700072,1739993448601,-500.0,0.00014027,2]
[353700073,1739993448611,-500.0,0.00014027,2]
[353700074,1739993448621,-500.0,0.00014027,2]
[353700075,1739993448631,-732.67,0.00014027,2]
[353700076,1739993448641,-764.39,0.00014027,2]
[353700077,1739993448651,-500.0,0.00014027,2]
[353700078,1739993448661,-1945.72,0.00014027,2]
[353700079,1739993448671,-241.33480055,0.00014027,2]
[353700080,1739993448681,-151.0,0.00014027,2]
[353700081,1739993448691,-500.0,0.00014027,2]
[353700082,1739993448700,-500.0,0.00014027,2]
[353700083,1739993448710,-1096.96,0.00014027,2]
[353700084,1739993448719,-500.0,0.00014027,2]
[353700085,1739993448729,-939.03,0.00014027,2]
[353700086,1739993448739,-500.0,0.00014027,2]
[353700087,1739993448750,-2183.99,0.00014027,2]
[353700088,1739993448761,-500.0,0.00014027,2]
[353700089,1739993448770,-500.0,0.00014027,2]
[353700090,1739993448780,-5846.13,0.00014027,2]
[353700091,1739993448790,-500.0,0.00014027,2]
[353700092,1739993448799,-505.47012224,0.00014027,2]
[353700093,1739993448809,-2082.11,0.00014027,2]
[353700094,1739993448819,-8474.38,0.00014027,2]
[353700095,1739993448828,-1201.82,0.00014027,2]
[353700096,1739993448838,-565.8,0.00014027,2]
[353700097,1739993448848,-500.0,0.00014027,2]
[353700098,1739993448858,-1256.69,0.00014027,2]
[353700099,1739993448868,-500.0,0.00014027,2]
[353700100,1739993448877,-1193.06,0.00014027,2]
[353700101,1739993448887,-764.21,0.00014027,2]
[353700102,1739993448896,-1647.02,0.00014027,2]
[353700103,1739993448907,-2276.69,0.00014027,2]
[353700104,1739993448917,-500.0,0.00014027,2]
[353700105,1739993448926,-3082.34,0.00014027,2]
[353700106,1739993448936,-619.22,0.00014027,2]
[353700107,1739993448945,-500.0,0.00014027,2]
[353700108,1739993448955,-500.0,0.00014027,2]
[353700109,1739993448964,-500.0,0.00014027,2]
[353700110,1739993448973,-500.0,0.00014027,2]
[353700111,1739993448982,-23157.7,0.00014027,2]
[353700112,1739993448992,-500.0,0.00014027,2]
[353700113,1739993449002,-500.0,0.00014027,2]
[353700114,1739993449011,-500.0,0.00014027,2]
[353700115,1739993449021,-516.29,0.00014027,2]
[353700116,1739993449031,-910.45,0.00014027,2]
[353700117,1739993449040,-500.0,0.00014027,2]
[353700118,1739993449049,-500.0,0.00014027,2]
[353700119,1739993449059,-500.0,0.00014027,2]
[353700120,1739993449068,-193.0,0.0001406,2]
[353700121,1739993449076,-500.0,0.00014108,2]
[353700122,1739993449085,-500.0,0.00014108,2]
[353700123,1739993449094,-500.0,0.00014109,2]
[353700124,1739993449103,-500.0,0.00014109,2]
[353700125,1739993449112,-500.0,0.00014109,2]
[353700126,1739993449120,-500.0,0.00014109,2]
[353700127,1739993449128,-500.0,0.00014109,2]
[353700128,1739993449138,-500.0,0.00014109,2]
[353700129,1739993449148,-500.0,0.00014109,2]
[353700130,1739993449158,-500.0,0.00014109,2]
[353700131,1739993449168,-500.0,0.00014109,2]
[353700132,1739993449177,-500.0,0.00014109,2]
[353700133,1739993449187,-500.0,0.00014109,2]
[353700134,1739993449196,-500.0,0.00014109,2]
[353700135,1739993449206,-512.6,0.00014109,2]
[353700136,1739993449215,-500.0,0.00014109,2]
[353700137,1739993449224,-500.0,0.00014109,2]
[353700138,1739993449235,-515.52909676,0.00014109,2]
[353700139,1739993449247,-508.73,0.00014109,2]
[353700140,1739993449257,-151.0,0.00014109,2]
[353700141,1739993449266,-1339.774645,0.00014109,2]
[353700142,1739993449276,-1339.774645,0.00014109,2]
[353700143,1739993449287,-500.0,0.00014109,2]
[353700144,1739993449296,-4752.4458,0.00014109,2]
[353700145,1739993449306,-500.0,0.00014109,2]
[353700146,1739993449316,-4752.4458,0.00014109,2]
[353700147,1739993449325,-500.0,0.00014109,2]
[353700148,1739993449335,-500.0,0.00014109,2]
[353700149,1739993449345,-500.0,0.00014109,2]
[353700150,1739993449355,-500.0,0.00014109,2]
[353700151,1739993449364,-500.0,0.00014109,2]
[353700152,1739993449374,-500.0,0.00014109,2]
[353700153,1739993449383,-500.0,0.00014109,2]
[353700154,1739993449393,-578.16,0.00014109,2]
[353700155,1739993449404,-500.0,0.00014109,2]
[353700156,1739993449413,-500.0,0.00014109,2]
[353700157,1739993449423,-691.97,0.00014109,2]
[353700158,1739993449432,-518.77801657,0.00014109,2]
[353700159,1739993449442,-500.0,0.00014109,2]
[353700160,1739993449452,-1104.41,0.00014109,2]
[353700161,1739993449461,-3005.91,0.00014109,2]
[353700162,1739993449471,-1060.38,0.00014109,2]
[353700163,1739993449480,-500.0,0.00014109,2]
[353700164,1739993449490,-8839.34,0.00014109,2]
[353700165,1739993449502,-500.0,0.00014109,2]
[353700166,1739993449578,-500.0,0.00014109,2]
[353700167,1739993449590,-500.0,0.00014109,2]
[353700168,1739993449601,-500.0,0.00014109,2]
[353700169,1739993449613,-1056.78,0.00014109,2]
[353700170,1739993449623,-722.94,0.00014109,2]
[353700171,1739993449633,-500.0,0.00014109,2]
[353700172,1739993449643,-672.359079,0.00014109,2]
[353700173,1739993449656,-1113.6,0.00014109,2]
[353700174,1739993449667,-672.359079,0.00014109,2]
[353700175,1739993449678,-500.0,0.00014109,2]
[353700176,1739993449688,-500.0,0.00014109,2]
[353700177,1739993449698,-691.309199,0.00014109,2]
[353700178,1739993449708,-691.309199,0.00014109,2]
[353700179,1739993449719,-502.75966118,0.00014109,2]
[353700180,1739993449729,-500.0,0.00014109,2]
[353700181,1739993449739,-500.0,0.00014109,2]
[353700182,1739993449749,-500.0,0.00014109,2]
[353700183,1739993449758,-500.0,0.00014109,2]
[353700184,1739993449768,-732.67,0.00014109,2]
[353700185,1739993449778,-764.39,0.00014109,2]
[353700186,1739993449787,-500.0,0.00014109,2]
[353700187,1739993449797,-1945.72,0.00014109,2]
[353700188,1739993449807,-500.0,0.00014109,2]
[353700189,1739993449817,-500.0,0.00014109,2]
[353700190,1739993449828,-1096.96,0.00014109,2]
[353700191,1739993449838,-500.0,0.00014109,2]
[353700192,1739993449848,-939.03,0.00014109,2]
[353700193,1739993449857,-229.907001,0.00014109,2]
[353700194,1739993449867,-229.907001,0.00014109,2]
[353700195,1739993449876,-500.0,0.00014109,2]
[353700196,1739993449886,-2183.99,0.00014109,2]
[353700197,1739993449895,-500.0,0.00014109,2]
[353700198,1739993449905,-500.0,0.00014109,2]
[353700199,1739993449915,-483.051078,0.00014109,2]
[353700200,1739993449925,-5846.13,0.00014109,2]
[353700201,1739993449934,-240.59027687,0.00014109,2]
[353700202,1739993449944,-151.0,0.00014109,2]
[353700203,1739993449953,-483.051078,0.00014109,2]
[353700204,1739993449963,-2082.11,0.00014109,2]
[353700205,1739993449972,-8474.38,0.00014109,2]
[353700206,1739993449982,-1201.82,0.00014109,2]
[353700207,1739993449991,-565.8,0.00014109,2]
[353700208,1739993450001,-500.0,0.00014109,2]
[353700209,1739993450010,-1256.69,0.00014109,2]
[353700210,1739993450020,-500.0,0.00014109,2]
[353700211,1739993450029,-1193.06,0.00014109,2]
[353700212,1739993450039,-764.21,0.00014109,2]
[353700213,1739993450048,-1647.02,0.00014109,2]
[353700214,1739993450057,-1623.222034,0.00014109,2]
[353700215,1739993450067,-1623.222034,0.00014109,2]
[353700216,1739993450076,-2276.69,0.00014109,2]
[353700217,1739993450086,-3082.34,0.00014109,2]
[353700218,1739993450096,-619.22,0.00014109,2]
[353700219,1739993450105,-500.0,0.00014109,2]
[353700220,1739993450115,-151.0,0.00014109,2]
[353700221,1739993450124,-153.977227,0.00014109,2]
[353700222,1739993450134,-500.0,0.00014109,2]
[353700223,1739993450143,-9025.878337,0.00014109,2]
[353700224,1739993450154,-500.0,0.00014109,2]
[353700225,1739993450163,-500.0,0.00014109,2]
[353700226,1739993450173,-9025.878337,0.00014109,2]
[353700227,1739993450182,-23157.7,0.00014109,2]
[353700228,1739993450192,-500.0,0.00014109,2]
[353700229,1739993450202,-500.0,0.00014109,2]
[353700230,1739993450211,-910.45,0.00014109,2]
[353700231,1739993450221,-500.0,0.00014109,2]
[353700232,1739993450231,-500.0,0.00014109,2]
[353700233,1739993450244,-592.08,0.00014109,2]
[353700234,1739993450253,-184.97113629,0.00014173,2]
[353700235,1739993450263,-511.26,0.00014191,2]
[353700236,1739993450273,-500.0,0.00014191,2]
[353700237,1739993450284,-500.0,0.00014191,2]
[353700238,1739993450293,-500.0,0.00014191,2]
[353700239,1739993450303,-500.0,0.00014191,2]
[353700240,1739993450312,-500.0,0.00014191,2]
[353700241,1739993450322,-500.0,0.00014191,2]
[353700242,1739993450332,-500.0,0.00014191,2]
[353700243,1739993450341,-500.0,0.00014191,2]
[353700244,1739993450351,-500.0,0.00014191,2]
[353700245,1739993450361,-500.0,0.00014191,2]
[353700246,1739993450371,-500.0,0.00014191,2]
[353700247,1739993450381,-512.6,0.00014191,2]
[353700248,1739993450391,-364.184848,0.00014191,2]
[353700249,1739993450401,-364.184848,0.00014191,2]
[353700250,1739993450410,-528.32,0.00014191,2]
[353700251,1739993450420,-151.0,0.00014191,2]
[353700252,1739993450430,-500.0,0.00014191,2]
[353700253,1739993450439,-508.73,0.00014191,2]
[353700254,1739993450449,-500.0,0.00014191,2]
[353700255,1739993450459,-500.0,0.00014191,2]
[353700256,1739993450468,-500.0,0.00014191,2]
[353700257,1739993450477,-500.0,0.00014191,2]
[353700258,1739993450487,-537.39213682,0.00014191,2]
[353700259,1739993450496,-151.0,0.00014191,2]
[353700260,1739993450505,-151.0,0.00014191,2]
[353700261,1739993450515,-500.0,0.00014191,2]
[353700262,1739993450524,-212.35,0.00014191,2]
[353700263,1739993450534,-500.0,0.00014191,2]
[353700264,1739993450543,-578.16,0.00014191,2]
[353700265,1739993450553,-500.0,0.00014191,2]
[353700266,1739993450562,-500.0,0.00014191,2]
[353700267,1739993450632,-691.97,0.00014191,2]
[353700268,1739993450642,-500.0,0.00014191,2]
[353700269,1739993450652,-1104.41,0.00014191,2]
[353700270,1739993450663,-3005.91,0.00014191,2]
[353700271,1739993450672,-1060.38,0.00014191,2]
[353700272,1739993450682,-8839.34,0.00014191,2]
[353700273,1739993450691,-500.0,0.00014191,2]
[353700274,1739993450700,-500.0,0.00014191,2]
[353700275,1739993450710,-500.0,0.00014191,2]
[353700276,1739993450720,-1056.78,0.00014191,2]
[353700277,1739993450730,-722.94,0.00014191,2]
[353700278,1739993450740,-450.0,0.00014191,2]
[353700279,1739993450750,-500.0,0.00014191,2]
[353700280,1739993450760,-218.184773,0.00014191,2]
[353700281,1739993450770,-1113.6,0.00014191,2]
[353700282,1739993450779,-450.0,0.00014191,2]
[353700283,1739993450789,-218.184773,0.00014191,2]
[353700284,1739993450799,-500.0,0.00014191,2]
[353700285,1739993450809,-1049.066856,0.00014191,2]
[353700286,1739993450819,-500.0,0.00014191,2]
[353700287,1739993450829,-1049.066856,0.00014191,2]
[353700288,1739993450838,-576.863411,0.00014191,2]
[353700289,1739993450847,-576.863411,0.00014191,2]
[353700290,1739993450857,-1442.621722,0.00014191,2]
[353700291,1739993450867,-1442.621722,0.00014191,2]
[353700292,1739993450877,-183.232478,0.00014191,2]
[353700293,1739993450887,-500.0,0.00014191,2]
[353700294,1739993450896,-500.0,0.00014191,2]
[353700295,1739993450907,-500.0,0.00014191,2]
[353700296,1739993450916,-732.67,0.00014191,2]
[353700297,1739993450925,-764.39,0.00014191,2]
[353700298,1739993450936,-500.0,0.00014191,2]
[353700299,1739993450946,-1945.72,0.00014191,2]
[353700300,1739993450956,-151.0,0.00014191,2]
[353700301,1739993450965,-500.0,0.00014191,2]
[353700302,1739993450975,-500.0,0.00014191,2]
[353700303,1739993450985,-1062.816669,0.00014191,2]
[353700304,1739993450995,-1096.96,0.00014191,2]
[353700305,1739993451005,-1062.816669,0.00014191,2]
[353700306,1739993451015,-500.0,0.00014191,2]
[353700307,1739993451025,-939.03,0.00014191,2]
[353700308,1739993451034,-500.0,0.00014191,2]
[353700309,1739993451044,-2183.99,0.00014191,2]
[353700310,1739993451054,-500.0,0.00014191,2]
[353700311,1739993451064,-500.0,0.00014191,2]
[353700312,1739993451073,-5846.13,0.00014191,2]
[353700313,1739993451084,-8474.38,0.00014191,2]
[353700314,1739993451105,-2082.11,0.00014191,2]
[353700315,1739993451124,-1201.82,0.00014191,2]
[353700316,1739993451143,-565.8,0.00014191,2]
[353700317,1739993451166,-500.0,0.00014191,2]
[353700318,1739993451187,-1256.69,0.00014191,2]
[353700319,1739993451206,-500.0,0.00014191,2]
[353700320,1739993451226,-1193.06,0.00014191,2]
[353700321,1739993451243,-764.21,0.00014191,2]
[353700322,1739993451261,-1647.02,0.00014191,2]
[353700323,1739993451284,-2276.69,0.00014191,2]
[353700324,1739993451301,-3082.34,0.00014191,2]
[353700325,1739993451320,-619.22,0.00014191,2]
[353700326,1739993451337,-500.0,0.00014191,2]
[353700327,1739993451355,-500.0,0.00014191,2]
[353700328,1739993451370,-500.0,0.00014191,2]
[353700329,1739993451387,-23157.7,0.00014191,2]
[353700330,1739993451404,-500.0,0.00014191,2]
[353700331,1739993451419,-420.76,0.00014191,2]
[353700332,1739993451433,-910.45,0.00014191,2]
[353700333,1739993451448,-500.0,0.00014191,2]
[353700334,1739993451463,-569.92789718,0.000142,2]
[353700335,1739993451478,-500.0,0.00014221,2]
[353700336,1739993451493,-1000.0,0.00014221,2]
[353700337,1739993451508,-1000.0,0.00014221,2]
[353700338,1739993451524,-1000.0,0.00014221,2]
[353700339,1739993451540,-1007.8268122,0.00014247,2]
[353700340,1739993451555,-202.61513239,0.00014247,2]
[353700341,1739993451571,-500.50517202,0.00014247,2]
[353700342,1739993451586,-4372.91997239,0.00014256,2]
[353700343,1739993451601,-500.0,0.00014273,2]
[353700344,1739993451617,-500.0,0.00014273,2]
[353700345,1739993451633,-500.0,0.00014273,2]
[353700346,1739993451644,-500.0,0.00014273,2]
[353700347,1739993451655,-500.0,0.00014273,2]
[353700348,1739993451666,-500.0,0.00014273,2]
[353700349,1739993451675,-500.0,0.00014273,2]
[353700350,1739993451685,-500.0,0.00014273,2]
[353700351,1739993451695,-500.0,0.00014273,2]
[353700352,1739993451705,-500.0,0.00014273,2]
[353700353,1739993451716,-500.0,0.00014273,2]
[353700354,1739993451726,-512.6,0.00014273,2]